[Event "RUS-ch Blitz 2021"]
[Site "Sochi"]
[Date "2021.10.11"]
[Round "12.11"]
[White "Shcherbin, Matvei"]
[Black "Savchenko, Boris"]
[Result "0-1"]
[ECO "B22"]
[WhiteElo "2366"]
[BlackElo "2535"]
[Annotator "ChessBase"]
[PlyCount "96"]
[EventDate "2021.10.11"]
[EventType "blitz"]
[EventCountry "RUS"]
[SourceTitle "playchess.com"]
[Source "ChessBase"]
[SourceQuality "1"]
[TimeControl "180+2"]

1. e4 {[%emt 0:00:00]} c5 {[%emt 0:00:04]} 2. c3 {[%emt 0:00:04]} Nf6 {[%emt 0:
00:00]} 3. e5 {[%emt 0:00:00]} Nd5 {[%emt 0:00:00]} 4. d4 {[%emt 0:00:03]} cxd4
{[%emt 0:00:00]} 5. Nf3 {[%emt 0:00:00]} d6 {[%emt 0:00:00]} 6. cxd4 {[%emt 0:
00:04]} dxe5 {[%emt 0:00:03]} 7. dxe5 {[%emt 0:00:00]} Bf5 {[%emt 0:00:06]} 8.
Bc4 {[%emt 0:00:31]} e6 {[%emt 0:00:08]} 9. O-O {[%emt 0:00:18]} Nc6 {[%emt 0:
00:02]} 10. Nd4 {[%emt 0:00:17]} Nxd4 {[%emt 0:00:42]} 11. Qxd4 {[%emt 0:00:00]
} Nc7 {[%emt 0:00:03]} 12. Qf4 {[%emt 0:00:24]} Be7 {[%emt 0:00:17]} 13. Nc3 {
[%emt 0:00:05]} O-O {[%emt 0:00:00]} 14. Rd1 {[%emt 0:00:06]} Qe8 {[%emt 0:00:
00]} 15. Be3 {[%emt 0:00:07]} Qc6 {[%emt 0:00:07]} 16. Bb3 {[%emt 0:00:04]}
Rfd8 {[%emt 0:00:10]} 17. h3 {[%emt 0:00:03]} h6 {[%emt 0:00:18]} 18. Rac1 {
[%emt 0:00:15]} Qa6 {[%emt 0:00:01]} 19. Ne4 {[%emt 0:00:18]} Ne8 {[%emt 0:00:
30]} 20. Nc5 {[%emt 0:00:17]} Bxc5 {[%emt 0:00:19]} 21. Bxc5 {[%emt 0:00:00]}
b6 {[%emt 0:00:23]} 22. Be7 {[%emt 0:00:11]} Rxd1+ {[%emt 0:00:00]} 23. Rxd1 {
[%emt 0:00:00]} Qb7 {[%emt 0:00:00]} 24. Bd6 {[%emt 0:00:20]} Rc8 {[%emt 0:00:
09]} 25. Rc1 {[%emt 0:00:07]} g5 {[%emt 0:00:04]} 26. Rxc8 {[%emt 0:00:03]}
gxf4 {[%emt 0:00:05]} 27. Rxe8+ {[%emt 0:00:02]} Kh7 {[%emt 0:00:10]} 28. Re7 {
[%emt 0:00:04]} Qe4 {[%emt 0:00:00]} 29. Rxf7+ {[%emt 0:00:00]} Kg8 {[%emt 0:
00:04]} 30. Rf8+ {[%emt 0:00:09]} Kg7 {[%emt 0:00:00]} 31. Rf6 {[%emt 0:00:00]}
Qe1+ {[%emt 0:00:08]} 32. Kh2 {[%emt 0:00:05]} Qxf2 {[%emt 0:00:00]} 33. Bf8+ {
[%emt 0:00:03]} Kh7 {[%emt 0:00:01]} 34. Rf7+ {[%emt 0:00:06]} Kh8 {[%emt 0:00:
11]} 35. Bg7+ {[%emt 0:00:00]} Kg8 {[%emt 0:00:00]} 36. Rxf5 {[%emt 0:00:00]}
Kxg7 {[%emt 0:00:00]} 37. Bxe6 {[%emt 0:00:04]} Qxb2 {[%emt 0:00:04]} 38. Bb3 {
[%emt 0:00:03]} f3 {[%emt 0:00:01]} 39. Rxf3 {[%emt 0:00:04]} Qxe5+ {[%emt 0:
00:00]} 40. Kg1 {[%emt 0:00:01]} a5 {[%emt 0:00:02]} 41. g4 {[%emt 0:00:03]} a4
{[%emt 0:00:02]} 42. Bf7 {[%emt 0:00:02]} b5 {[%emt 0:00:03]} 43. Kg2 {[%emt 0:
00:00]} b4 {[%emt 0:00:03]} 44. Bc4 {[%emt 0:00:04]} Qe4 {[%emt 0:00:01]} 45.
Bf7 {[%emt 0:00:02]} Qxf3+ {[%emt 0:00:03]} 46. Kxf3 {[%emt 0:00:00]} Kxf7 {
[%emt 0:00:02]} 47. Ke3 {[%emt 0:00:03]} b3 {[%emt 0:00:00]} 48. axb3 {[%emt 0:
00:04]} a3 {[%emt 0:00:00]} 0-1

[Event "RUS-ch Blitz 2021"]
[Site "Sochi"]
[Date "2021.10.11"]
[Round "12.12"]
[White "Khegay, Dmitriy"]
[Black "Vastrukhin, Oleg"]
[Result "0-1"]
[ECO "D02"]
[WhiteElo "2521"]
[BlackElo "2382"]
[Annotator "ChessBase"]
[PlyCount "80"]
[EventDate "2021.10.11"]
[EventType "blitz"]
[EventCountry "RUS"]
[SourceTitle "playchess.com"]
[Source "ChessBase"]
[SourceQuality "1"]
[TimeControl "180+2"]

1. d4 {[%emt 0:00:00]} g6 {[%emt 0:00:05]} 2. Bf4 {[%emt 0:00:01]} Bg7 {
[%emt 0:00:00]} 3. e3 {[%emt 0:00:00]} Nf6 {[%emt 0:00:01]} 4. Nf3 {[%emt 0:00:
03]} O-O {[%emt 0:00:00]} 5. Be2 {[%emt 0:00:05]} d5 {[%emt 0:00:00]} 6. O-O {
[%emt 0:00:03]} c5 {[%emt 0:00:02]} 7. c3 {[%emt 0:00:00]} Qb6 {[%emt 0:00:00]}
8. Qb3 {[%emt 0:00:02]} Nc6 {[%emt 0:00:03]} 9. Nbd2 {[%emt 0:00:00]} c4 {
[%emt 0:00:08]} 10. Qa3 {[%emt 0:00:09]} Bf5 {[%emt 0:00:04]} 11. b3 {[%emt 0:
00:06]} Bd3 {[%emt 0:00:11]} 12. Bxd3 {[%emt 0:00:06]} cxd3 {[%emt 0:00:00]}
13. Rfd1 {[%emt 0:00:10]} Ne4 {[%emt 0:00:05]} 14. Rac1 {[%emt 0:00:02]} Rfc8 {
[%emt 0:00:11]} 15. Qb2 {[%emt 0:00:14]} a5 {[%emt 0:00:20]} 16. Ne1 {[%emt 0:
00:10]} e5 {[%emt 0:00:06]} 17. dxe5 {[%emt 0:00:54]} Nxe5 {[%emt 0:00:03]} 18.
Nb1 {[%emt 0:00:00]} d2 {[%emt 0:00:32]} 19. Nxd2 {[%emt 0:00:08]} Nxc3 {
[%emt 0:00:01]} 20. Rxc3 {[%emt 0:00:19]} Rxc3 {[%emt 0:00:02]} 21. Bxe5 {
[%emt 0:00:19]} Bxe5 {[%emt 0:00:02]} 22. Ndf3 {[%emt 0:00:00]} Bf6 {[%emt 0:
00:13]} 23. Qd2 {[%emt 0:00:06]} Rac8 {[%emt 0:00:00]} 24. h4 {[%emt 0:00:07]}
h5 {[%emt 0:00:01]} 25. g3 {[%emt 0:00:14]} Qb4 {[%emt 0:00:13]} 26. Qe2 {
[%emt 0:00:29]} Qe4 {[%emt 0:00:10]} 27. Qd2 {[%emt 0:00:00]} R8c5 {[%emt 0:00:
11]} 28. Kg2 {[%emt 0:00:03]} b5 {[%emt 0:00:03]} 29. Nd3 {[%emt 0:00:03]} Rc8
{[%emt 0:00:11]} 30. Nf4 {[%emt 0:00:00]} d4 {[%emt 0:00:02]} 31. Re1 {[%emt 0:
00:05]} dxe3 {[%emt 0:00:03]} 32. Rxe3 {[%emt 0:00:04]} Rxe3 {[%emt 0:00:00]}
33. Qxe3 {[%emt 0:00:00]} Qxe3 {[%emt 0:00:05]} 34. fxe3 {[%emt 0:00:00]} Rc2+
{[%emt 0:00:02]} 35. Kh3 {[%emt 0:00:01]} Rxa2 {[%emt 0:00:01]} 36. g4 {
[%emt 0:00:02]} hxg4+ {[%emt 0:00:00]} 37. Kxg4 {[%emt 0:00:00]} a4 {[%emt 0:
00:02]} 38. Nd5 {[%emt 0:00:04]} Bg7 {[%emt 0:00:02]} 39. bxa4 {[%emt 0:00:09]}
bxa4 {[%emt 0:00:01]} 40. Ng5 {[%emt 0:00:00]} a3 {[%emt 0:00:00]} 0-1

[Event "RUS-ch Blitz 2021"]
[Site "Sochi"]
[Date "2021.10.11"]
[Round "12.13"]
[White "Shubin, Kirill"]
[Black "Triapishko, Alexandr"]
[Result "1-0"]
[ECO "B13"]
[WhiteElo "2463"]
[BlackElo "2506"]
[Annotator "ChessBase"]
[PlyCount "61"]
[EventDate "2021.10.11"]
[EventType "blitz"]
[EventCountry "RUS"]
[SourceTitle "playchess.com"]
[Source "ChessBase"]
[SourceQuality "1"]
[TimeControl "180+2"]

1. e4 {[%emt 0:00:00]} c6 {[%emt 0:00:04]} 2. d4 {[%emt 0:00:01]} d5 {[%emt 0:
00:03]} 3. exd5 {[%emt 0:00:01]} cxd5 {[%emt 0:00:00]} 4. Bd3 {[%emt 0:00:00]}
Nf6 {[%emt 0:00:00]} 5. c3 {[%emt 0:00:08]} Nc6 {[%emt 0:00:01]} 6. Bf4 {
[%emt 0:00:00]} Bg4 {[%emt 0:00:05]} 7. Qb3 {[%emt 0:00:00]} Qc8 {[%emt 0:00:
13]} 8. Nd2 {[%emt 0:00:00]} e6 {[%emt 0:00:00]} 9. Ngf3 {[%emt 0:00:03]} Be7 {
[%emt 0:00:00]} 10. O-O {[%emt 0:00:02]} O-O {[%emt 0:00:08]} 11. Rfe1 {
[%emt 0:00:00]} Bh5 {[%emt 0:00:06]} 12. Ng5 {[%emt 0:00:00]} Qd7 {[%emt 0:00:
37]} 13. Nf1 {[%emt 0:00:21]} h6 {[%emt 0:00:05]} 14. Nh3 {[%emt 0:00:09]} Bg4
{[%emt 0:00:05]} 15. Qc2 {[%emt 0:00:15]} Bxh3 {[%emt 0:00:18]} 16. gxh3 {
[%emt 0:00:01]} Bd6 {[%emt 0:00:00]} 17. Bg3 {[%emt 0:00:11]} Rac8 {[%emt 0:00:
05]} 18. Qe2 {[%emt 0:00:09]} Ne7 {[%emt 0:00:10]} 19. Nd2 {[%emt 0:00:08]}
Rfe8 {[%emt 0:00:21]} 20. Nf3 {[%emt 0:00:06]} Qc7 {[%emt 0:00:21]} 21. Kh1 {
[%emt 0:00:12]} Ng6 {[%emt 0:00:09]} 22. Bxd6 {[%emt 0:00:22]} Qxd6 {[%emt 0:
00:00]} 23. Bxg6 {[%emt 0:00:02]} fxg6 {[%emt 0:00:00]} 24. Rg1 {[%emt 0:00:03]
} g5 {[%emt 0:00:29]} 25. h4 {[%emt 0:00:01]} gxh4 {[%emt 0:00:15]} 26. Ne5 {
[%emt 0:00:17]} Rc7 {[%emt 0:00:07]} 27. Rg6 {[%emt 0:00:05]} Rf8 {[%emt 0:00:
09]} 28. Rag1 {[%emt 0:00:06]} Kh7 {[%emt 0:00:04]} 29. f3 {[%emt 0:00:12]} Qd8
{[%emt 0:00:01]} 30. Qg2 {[%emt 0:00:19]} Qe8 {[%emt 0:00:00]} 31. Rxg7+ {
[%emt 0:00:02]} 1-0

[Event "RUS-ch Blitz 2021"]
[Site "Sochi"]
[Date "2021.10.11"]
[Round "12.14"]
[White "Makarian, Rudik"]
[Black "Obgolts, Erik"]
[Result "0-1"]
[ECO "E73"]
[WhiteElo "2470"]
[BlackElo "2430"]
[Annotator "ChessBase"]
[PlyCount "124"]
[EventDate "2021.10.11"]
[EventType "blitz"]
[EventCountry "RUS"]
[SourceTitle "playchess.com"]
[Source "ChessBase"]
[SourceQuality "1"]
[TimeControl "180+2"]

1. d4 {[%emt 0:00:00]} Nf6 {[%emt 0:00:04]} 2. c4 {[%emt 0:00:01]} g6 {[%emt 0:
00:00]} 3. Nc3 {[%emt 0:00:00]} Bg7 {[%emt 0:00:04]} 4. e4 {[%emt 0:00:04]} d6
{[%emt 0:00:00]} 5. Be2 {[%emt 0:00:00]} O-O {[%emt 0:00:02]} 6. Be3 {[%emt 0:
00:01]} e5 {[%emt 0:00:07]} 7. d5 {[%emt 0:00:01]} Na6 {[%emt 0:00:04]} 8. g4 {
[%emt 0:00:07]} Nc5 {[%emt 0:00:00]} 9. f3 {[%emt 0:00:00]} a5 {[%emt 0:00:04]}
10. h4 {[%emt 0:00:00]} h5 {[%emt 0:00:00]} 11. g5 {[%emt 0:00:09]} Nh7 {
[%emt 0:00:00]} 12. Qd2 {[%emt 0:00:00]} f6 {[%emt 0:00:21]} 13. Nh3 {[%emt 0:
00:08]} Bxh3 {[%emt 0:00:00]} 14. Rxh3 {[%emt 0:00:02]} fxg5 {[%emt 0:00:01]}
15. hxg5 {[%emt 0:00:00]} Qe7 {[%emt 0:00:10]} 16. O-O-O {[%emt 0:00:00]} b6 {
[%emt 0:00:05]} 17. Rg1 {[%emt 0:00:08]} Rf7 {[%emt 0:00:13]} 18. Nb5 {[%emt 0:
00:21]} Raf8 {[%emt 0:00:13]} 19. Na7 {[%emt 0:00:16]} Rf4 {[%emt 0:00:00]} 20.
Nc6 {[%emt 0:00:02]} Qd7 {[%emt 0:00:00]} 21. Rhh1 {[%emt 0:00:11]} Qe8 {
[%emt 0:01:02]} 22. Bd1 {[%emt 0:00:21]} R8f7 {[%emt 0:00:11]} 23. Kc2 {
[%emt 0:00:17]} Nf8 {[%emt 0:00:07]} 24. Bxc5 {[%emt 0:00:15]} dxc5 {[%emt 0:
00:07]} 25. Qg2 {[%emt 0:00:14]} Rd7 {[%emt 0:00:26]} 26. Be2 {[%emt 0:00:08]}
Rd6 {[%emt 0:00:03]} 27. Na7 {[%emt 0:00:07]} Rd8 {[%emt 0:00:08]} 28. Qh3 {
[%emt 0:00:09]} Qd7 {[%emt 0:00:01]} 29. Kb3 {[%emt 0:00:13]} Qxh3 {[%emt 0:00:
20]} 30. Rxh3 {[%emt 0:00:00]} Nd7 {[%emt 0:00:00]} 31. Nb5 {[%emt 0:00:09]}
Rc8 {[%emt 0:00:00]} 32. Rhg3 {[%emt 0:00:05]} Bf8 {[%emt 0:00:00]} 33. Bf1 {
[%emt 0:00:00]} Bd6 {[%emt 0:00:13]} 34. Bh3 {[%emt 0:00:00]} Rd8 {[%emt 0:00:
00]} 35. Bxd7 {[%emt 0:00:20]} Rxd7 {[%emt 0:00:00]} 36. Ka4 {[%emt 0:00:02]}
Rdf7 {[%emt 0:00:00]} 37. Nxd6 {[%emt 0:00:06]} cxd6 {[%emt 0:00:00]} 38. Kb5 {
[%emt 0:00:03]} Rxf3 {[%emt 0:00:05]} 39. Kc6 {[%emt 0:00:03]} Rf2 {[%emt 0:00:
03]} 40. Kxd6 {[%emt 0:00:03]} Rxb2 {[%emt 0:00:03]} 41. Rd3 {[%emt 0:00:02]}
Re2 {[%emt 0:00:03]} 42. Kc6 {[%emt 0:00:05]} Kf8 {[%emt 0:00:02]} 43. Rb1 {
[%emt 0:00:04]} Rxe4 {[%emt 0:00:03]} 44. d6 {[%emt 0:00:00]} Rd4 {[%emt 0:00:
02]} 45. Rxd4 {[%emt 0:00:01]} cxd4 {[%emt 0:00:00]} 46. d7 {[%emt 0:00:06]}
Ke7 {[%emt 0:00:01]} 47. Kc7 {[%emt 0:00:01]} Rf8 {[%emt 0:00:00]} 48. Re1 {
[%emt 0:00:09]} Ke6 {[%emt 0:00:01]} 49. Rf1 {[%emt 0:00:00]} Rg8 {[%emt 0:00:
08]} 50. Rf6+ {[%emt 0:00:01]} Ke7 {[%emt 0:00:00]} 51. Rxg6 {[%emt 0:00:01]}
Rf8 {[%emt 0:00:04]} 52. Rg7+ {[%emt 0:00:03]} Ke6 {[%emt 0:00:03]} 53. Rg6+ {
[%emt 0:00:04]} Ke7 {[%emt 0:00:00]} 54. Rg7+ {[%emt 0:00:03]} Ke6 {[%emt 0:00:
00]} 55. Rh7 {[%emt 0:00:03]} d3 {[%emt 0:00:01]} 56. Rh6+ {[%emt 0:00:01]} Ke7
{[%emt 0:00:01]} 57. Rh7+ {[%emt 0:00:01]} Ke6 {[%emt 0:00:00]} 58. Rxh5 {
[%emt 0:00:01]} e4 {[%emt 0:00:02]} 59. g6 {[%emt 0:00:02]} d2 {[%emt 0:00:04]}
60. g7 {[%emt 0:00:00]} Rg8 {[%emt 0:00:01]} 61. Rd5 {[%emt 0:00:04]} e3 {
[%emt 0:00:02]} 62. d8=Q {[%emt 0:00:01]} Rxd8 {[%emt 0:00:08]} 0-1

[Event "RUS-ch Blitz 2021"]
[Site "Sochi"]
[Date "2021.10.11"]
[Round "12.15"]
[White "Mikhailovsky, Vladimir"]
[Black "Dreev, Aleksey"]
[Result "1-0"]
[ECO "B10"]
[WhiteElo "2184"]
[BlackElo "2635"]
[Annotator "ChessBase"]
[PlyCount "89"]
[EventDate "2021.10.11"]
[EventType "blitz"]
[EventCountry "RUS"]
[SourceTitle "playchess.com"]
[Source "ChessBase"]
[SourceQuality "1"]
[TimeControl "180+2"]

1. e4 {[%emt 0:00:00]} c6 {[%emt 0:00:05]} 2. c4 {[%emt 0:00:03]} d5 {[%emt 0:
00:00]} 3. cxd5 {[%emt 0:00:00]} cxd5 {[%emt 0:00:02]} 4. exd5 {[%emt 0:00:00]}
Nf6 {[%emt 0:00:00]} 5. Qa4+ {[%emt 0:00:00]} Nbd7 {[%emt 0:00:02]} 6. Nc3 {
[%emt 0:00:03]} g6 {[%emt 0:00:03]} 7. Bc4 {[%emt 0:00:01]} Bg7 {[%emt 0:00:04]
} 8. d3 {[%emt 0:00:01]} O-O {[%emt 0:00:02]} 9. Nf3 {[%emt 0:00:01]} a6 {
[%emt 0:00:03]} 10. Qa3 {[%emt 0:00:02]} b6 {[%emt 0:00:12]} 11. O-O {[%emt 0:
00:01]} Bb7 {[%emt 0:00:02]} 12. Be3 {[%emt 0:00:04]} b5 {[%emt 0:00:01]} 13.
Bb3 {[%emt 0:00:02]} Re8 {[%emt 0:00:37]} 14. Rfe1 {[%emt 0:00:07]} Bf8 {
[%emt 0:00:07]} 15. Qb4 {[%emt 0:01:05]} e5 {[%emt 0:00:00]} 16. Qh4 {[%emt 0:
00:07]} b4 {[%emt 0:00:20]} 17. Ne4 {[%emt 0:00:09]} Nxd5 {[%emt 0:00:12]} 18.
Bg5 {[%emt 0:00:17]} Qb6 {[%emt 0:00:04]} 19. Bh6 {[%emt 0:00:23]} Qd8 {
[%emt 0:00:51]} 20. Bg5 {[%emt 0:00:25]} Qb6 {[%emt 0:00:19]} 21. Rad1 {
[%emt 0:00:11]} Bg7 {[%emt 0:00:02]} 22. Bh6 {[%emt 0:00:07]} Nf8 {[%emt 0:00:
10]} 23. Nfg5 {[%emt 0:00:13]} Rad8 {[%emt 0:00:00]} 24. Ba4 {[%emt 0:00:14]}
Bc6 {[%emt 0:00:05]} 25. Bb3 {[%emt 0:00:00]} Bb7 {[%emt 0:00:06]} 26. Rc1 {
[%emt 0:00:05]} Re7 {[%emt 0:00:07]} 27. Nc5 {[%emt 0:00:00]} Ba8 {[%emt 0:00:
07]} 28. Bxg7 {[%emt 0:00:02]} Kxg7 {[%emt 0:00:00]} 29. Bxd5 {[%emt 0:00:04]}
Bxd5 {[%emt 0:00:03]} 30. Nge4 {[%emt 0:00:07]} Rde8 {[%emt 0:00:03]} 31. Na4 {
[%emt 0:00:06]} Qd8 {[%emt 0:00:00]} 32. Qf6+ {[%emt 0:00:01]} Kg8 {[%emt 0:00:
04]} 33. Qxa6 {[%emt 0:00:00]} Re6 {[%emt 0:00:02]} 34. Qb5 {[%emt 0:00:01]}
Ba8 {[%emt 0:00:04]} 35. Qxb4 {[%emt 0:00:03]} Kg7 {[%emt 0:00:01]} 36. Nac5 {
[%emt 0:00:01]} Rc6 {[%emt 0:00:00]} 37. Qc3 {[%emt 0:00:04]} Qd5 {[%emt 0:00:
00]} 38. b4 {[%emt 0:00:00]} Rd8 {[%emt 0:00:03]} 39. Qc4 {[%emt 0:00:02]} Qd4
{[%emt 0:00:05]} 40. Qxd4 {[%emt 0:00:02]} Rxd4 {[%emt 0:00:02]} 41. b5 {
[%emt 0:00:00]} Rc8 {[%emt 0:00:01]} 42. Ne6+ {[%emt 0:00:03]} Nxe6 {[%emt 0:
00:03]} 43. Rxc8 {[%emt 0:00:00]} Rxd3 {[%emt 0:00:00]} 44. Rxa8 {[%emt 0:00:
02]} Nd4 {[%emt 0:00:02]} 45. b6 {[%emt 0:00:00]} 1-0

[Event "RUS-ch Blitz 2021"]
[Site "Sochi"]
[Date "2021.10.11"]
[Round "12.16"]
[White "Usmanov, Vasily"]
[Black "Sjugirov, Sanan"]
[Result "0-1"]
[ECO "B07"]
[WhiteElo "2447"]
[BlackElo "2663"]
[Annotator "ChessBase"]
[PlyCount "78"]
[EventDate "2021.10.11"]
[EventType "blitz"]
[EventCountry "RUS"]
[SourceTitle "playchess.com"]
[Source "ChessBase"]
[SourceQuality "1"]
[TimeControl "180+2"]

1. d4 {[%emt 0:00:00]} d6 {[%emt 0:00:00]} 2. e4 {[%emt 0:00:07]} Nf6 {[%emt 0:
00:01]} 3. Bd3 {[%emt 0:00:04]} e5 {[%emt 0:00:01]} 4. Nf3 {[%emt 0:00:00]}
exd4 {[%emt 0:00:09]} 5. Nxd4 {[%emt 0:00:05]} g6 {[%emt 0:00:00]} 6. O-O {
[%emt 0:00:06]} Bg7 {[%emt 0:00:07]} 7. Nc3 {[%emt 0:00:18]} O-O {[%emt 0:00:
00]} 8. Bg5 {[%emt 0:00:10]} h6 {[%emt 0:00:04]} 9. Bh4 {[%emt 0:00:12]} Nbd7 {
[%emt 0:00:04]} 10. Re1 {[%emt 0:00:05]} Re8 {[%emt 0:00:03]} 11. Bf1 {[%emt 0:
00:31]} c6 {[%emt 0:00:05]} 12. Nb3 {[%emt 0:00:10]} Ne5 {[%emt 0:00:11]} 13.
f4 {[%emt 0:00:09]} Neg4 {[%emt 0:00:08]} 14. h3 {[%emt 0:00:18]} Qb6+ {
[%emt 0:00:00]} 15. Kh1 {[%emt 0:00:18]} Nf2+ {[%emt 0:00:01]} 16. Bxf2 {
[%emt 0:00:00]} Qxf2 {[%emt 0:00:05]} 17. Qxd6 {[%emt 0:00:00]} Nh5 {[%emt 0:
00:05]} 18. Qd2 {[%emt 0:00:12]} Qxd2 {[%emt 0:00:14]} 19. Nxd2 {[%emt 0:00:00]
} Nxf4 {[%emt 0:00:02]} 20. Nc4 {[%emt 0:00:00]} Be6 {[%emt 0:00:11]} 21. Rad1
{[%emt 0:00:06]} Red8 {[%emt 0:00:29]} 22. Na5 {[%emt 0:00:03]} Rxd1 {[%emt 0:
00:11]} 23. Nxd1 {[%emt 0:00:04]} Rb8 {[%emt 0:00:11]} 24. Bc4 {[%emt 0:00:06]}
Bxc4 {[%emt 0:00:14]} 25. Nxc4 {[%emt 0:00:00]} Rd8 {[%emt 0:00:03]} 26. Nde3 {
[%emt 0:00:05]} b5 {[%emt 0:00:02]} 27. Na5 {[%emt 0:00:03]} c5 {[%emt 0:00:29]
} 28. c4 {[%emt 0:00:14]} Nd3 {[%emt 0:00:10]} 29. Rf1 {[%emt 0:00:00]} bxc4 {
[%emt 0:00:05]} 30. Nexc4 {[%emt 0:00:17]} Nxb2 {[%emt 0:00:00]} 31. Nc6 {
[%emt 0:00:07]} Rd7 {[%emt 0:00:07]} 32. Nxb2 {[%emt 0:00:04]} Bxb2 {[%emt 0:
00:01]} 33. Rb1 {[%emt 0:00:00]} Rd2 {[%emt 0:00:06]} 34. Nxa7 {[%emt 0:00:05]}
c4 {[%emt 0:00:00]} 35. Nc6 {[%emt 0:00:09]} c3 {[%emt 0:00:04]} 36. Nb4 {
[%emt 0:00:00]} c2 {[%emt 0:00:00]} 37. Nxc2 {[%emt 0:00:04]} Rxc2 {[%emt 0:00:
01]} 38. a4 {[%emt 0:00:02]} Be5 {[%emt 0:00:01]} 39. Rb5 {[%emt 0:00:00]} Rc1#
{[%emt 0:00:03]} 0-1

[Event "RUS-ch Blitz 2021"]
[Site "Sochi"]
[Date "2021.10.11"]
[Round "12.17"]
[White "Tsydypov, Zhamsaran"]
[Black "Samusenko, Maksim"]
[Result "0-1"]
[ECO "E94"]
[WhiteElo "2526"]
[BlackElo "2461"]
[Annotator "ChessBase"]
[PlyCount "106"]
[EventDate "2021.10.11"]
[EventType "blitz"]
[EventCountry "RUS"]
[SourceTitle "playchess.com"]
[Source "ChessBase"]
[SourceQuality "1"]
[TimeControl "180+2"]

1. d4 {[%emt 0:00:07]} Nf6 {[%emt 0:00:00]} 2. c4 {[%emt 0:00:00]} d6 {[%emt 0:
00:00]} 3. Nf3 {[%emt 0:00:03]} g6 {[%emt 0:00:02]} 4. Nc3 {[%emt 0:00:00]} Bg7
{[%emt 0:00:00]} 5. e4 {[%emt 0:00:02]} O-O {[%emt 0:00:07]} 6. Be2 {[%emt 0:
00:00]} Na6 {[%emt 0:00:00]} 7. O-O {[%emt 0:00:07]} e5 {[%emt 0:00:00]} 8. d5
{[%emt 0:00:02]} Nc5 {[%emt 0:00:03]} 9. Qc2 {[%emt 0:00:11]} a5 {[%emt 0:00:
00]} 10. Be3 {[%emt 0:00:07]} b6 {[%emt 0:00:25]} 11. Nd2 {[%emt 0:00:36]} Bg4
{[%emt 0:00:06]} 12. f3 {[%emt 0:00:01]} Bd7 {[%emt 0:00:04]} 13. b3 {[%emt 0:
00:02]} Nh5 {[%emt 0:00:00]} 14. Rfe1 {[%emt 0:01:02]} f5 {[%emt 0:00:20]} 15.
a3 {[%emt 0:00:09]} Bf6 {[%emt 0:00:04]} 16. b4 {[%emt 0:00:04]} Na6 {[%emt 0:
00:00]} 17. bxa5 {[%emt 0:00:20]} Nc5 {[%emt 0:00:06]} 18. axb6 {[%emt 0:00:04]
} cxb6 {[%emt 0:00:00]} 19. Bf1 {[%emt 0:00:11]} Bg5 {[%emt 0:00:17]} 20. Bf2 {
[%emt 0:00:09]} Bxd2 {[%emt 0:00:35]} 21. Qxd2 {[%emt 0:00:00]} Nb3 {[%emt 0:
00:00]} 22. Qb2 {[%emt 0:00:00]} Nxa1 {[%emt 0:00:03]} 23. Rxa1 {[%emt 0:00:14]
} Rb8 {[%emt 0:00:03]} 24. Qb4 {[%emt 0:00:00]} Qe7 {[%emt 0:00:11]} 25. Bxb6 {
[%emt 0:00:13]} Nf6 {[%emt 0:00:00]} 26. a4 {[%emt 0:00:01]} fxe4 {[%emt 0:00:
05]} 27. fxe4 {[%emt 0:00:04]} Ng4 {[%emt 0:00:10]} 28. a5 {[%emt 0:00:03]} Qh4
{[%emt 0:00:30]} 29. h3 {[%emt 0:00:00]} Ne3 {[%emt 0:00:05]} 30. Qxd6 {
[%emt 0:00:08]} Qf2+ {[%emt 0:00:23]} 31. Kh1 {[%emt 0:00:00]} Rxb6 {[%emt 0:
00:10]} 32. axb6 {[%emt 0:00:02]} Bxh3 {[%emt 0:00:00]} 33. gxh3 {[%emt 0:00:
03]} Qf3+ {[%emt 0:00:05]} 34. Kg1 {[%emt 0:00:02]} Qg3+ {[%emt 0:00:01]} 35.
Kh1 {[%emt 0:00:02]} Rf2 {[%emt 0:00:06]} 36. Ra8+ {[%emt 0:00:00]} Kg7 {
[%emt 0:00:02]} 37. Qe7+ {[%emt 0:00:00]} Kh6 {[%emt 0:00:00]} 38. Qf8+ {
[%emt 0:00:02]} Rxf8 {[%emt 0:00:02]} 39. Rxf8 {[%emt 0:00:02]} Nxf1 {[%emt 0:
00:03]} 40. Rxf1 {[%emt 0:00:01]} Qxh3+ {[%emt 0:00:00]} 41. Kg1 {[%emt 0:00:
01]} Qxc3 {[%emt 0:00:00]} 42. b7 {[%emt 0:00:03]} Qb4 {[%emt 0:00:02]} 43. Rf7
{[%emt 0:00:01]} Kg5 {[%emt 0:00:08]} 44. Kg2 {[%emt 0:00:00]} Kg4 {[%emt 0:00:
01]} 45. c5 {[%emt 0:00:00]} Qb2+ {[%emt 0:00:02]} 46. Kf1 {[%emt 0:00:06]}
Qc1+ {[%emt 0:00:04]} 47. Ke2 {[%emt 0:00:01]} Qc2+ {[%emt 0:00:00]} 48. Kf1 {
[%emt 0:00:01]} Qd3+ {[%emt 0:00:04]} 49. Kf2 {[%emt 0:00:01]} Qd4+ {[%emt 0:
00:00]} 50. Kf1 {[%emt 0:00:00]} Qc4+ {[%emt 0:00:04]} 51. Kg2 {[%emt 0:00:05]}
Qxe4+ {[%emt 0:00:02]} 52. Kh2 {[%emt 0:00:02]} Qc2+ {[%emt 0:00:03]} 53. Kh1 {
[%emt 0:00:03]} Kg3 {[%emt 0:00:04]} 0-1